Workbook

Sheet BUDGET 2023-24
A2: DCOG CWP Tender T01/2021 Annexure C - Bid Costing Sheet
A4: Bidder to complete yellow cells only using MS Excel or similar software. Any other change to the spread sheet will invalidate the bid
A7: Provisional Budget Per Province / year | B7: Target Participants | C7: A: Participant wages (Excl. COID / UIF) | D7: B: Goods / Services / Equipment | E7: TOTAL | F7: IA % Project Management fee | G7: Bidder Quoted PM Fee (Incl. 15% VAT)
A8: Eastern Cape | B8: 47,000 | C8: 591,155,025 | D8: 72,231,000 | E8: =C8+D8 -> 663,386,025 | F8: 5.0% | G8: =ROUND(E8*F8,0) -> 33,169,301
A9: Free State | B9: 24,800 | C9: 311,103,288 | D9: 38,008,500 | E9: =C9+D9 -> 349,111,788 | F9: 0.0% | G9: =ROUND(E9*F9,0) -> 0
A10: Gauteng | B10: 22,600 | C10: 287,723,738 | D10: 35,158,500 | E10: 322,882,238 | F10: 0.0% | G10: 0
A11: KwaZulu-Natal | B11: 45,000 | C11: 601,972,025 | D11: 73,527,000 | E11: 675,499,025 | F11: 0.0% | G11: 0
A12: Limpopo | B12: 29,000 | C12: 379,024,563 | D12: 46,309,500 | E12: 425,334,063 | F12: 0.0% | G12: 0
A13: Mpumalanga | B13: 26,900 | C13: 349,869,375 | D13: 42,753,000 | E13: 392,622,375 | F13: 0.0% | G13: 0
A14: North West | B14: 21,200 | C14: 273,947,913 | D14: 33,463,500 | E14: 307,411,413 | F14: 0.0% | G14: 0
A15: Northern Cape | B15: 21,000 | C15: 239,876,938 | D15: 29,278,500 | E15: 269,155,438 | F15: 0.0% | G15: 0
A16: Western Cape | B16: 17,500 | C16: 204,642,450 | D16: 24,966,000 | E16: 229,608,450 | F16: 0.0% | G16: 0
A17: TOTAL | B17: =SUM(B8:B16) -> 255,000 | C17: =SUM(C8:C16) -> 3,239,315,315 | D17: =SUM(D8:D16) -> 395,695,500 | E17: =SUM(E8:E16) -> 3,635,010,815 | G17: =SUM(G8:G16) -> 33,169,301
F18: Supplier bid amount for 12 months (SBD 3.3 / PPPFA Price) per province

Sheet BUDGET 2023-24 6MONTHS
A2: DCOG CWP Tender T23/2023 Annexure C - Bid Costing Sheet
A4: Bidder to complete yellow cells only using MS Excel or similar software. Any other change to the spread sheet will invalidate the bid
A7: Provisional Budget Per Province / year | B7: Target Participants | C7: A: Participant wages (Excl. COID / UIF) | D7: B: Goods / Services / Equipment | E7: TOTAL | F7: IA % Project Management fee | G7: Bidder Quoted PM Fee (Incl. 15% VAT)
A8: Eastern Cape | B8: 47,000 | C8: =591155025/2 -> 295,577,513 | D8: =72231000/2 -> 36,115,500 | E8: =C8+D8 -> 331,693,013 | F8: 0.0% | G8: =ROUND(E8*F8,0) -> 0
A9: Free State | B9: 24,800 | C9: =311103288/2 -> 155,551,644 | D9: =38008500/2 -> 19,004,250 | E9: =C9+D9 -> 174,555,894 | F9: 0.0% | G9: =ROUND(E9*F9,0) -> 0
A10: Gauteng | B10: 22,600 | C10: =287723738/2 -> 143,861,869 | D10: =35158500/2 -> 17,579,250 | E10: 161,441,119 | F10: 0.0% | G10: 0
A11: KwaZulu-Natal | B11: 45,000 | C11: =601972025/2 -> 300,986,013 | D11: =73527000/2 -> 36,763,500 | E11: 337,749,513 | F11: 0.0% | G11: 0
A12: Limpopo | B12: 29,000 | C12: =379024563/2 -> 189,512,282 | D12: =46309500/2 -> 23,154,750 | E12: 212,667,032 | F12: 0.0% | G12: 0
A13: Mpumalanga | B13: 26,900 | C13: =349869375/2 -> 174,934,688 | D13: =42753000/2 -> 21,376,500 | E13: 196,311,188 | F13: 0.0% | G13: 0
A14: North West | B14: 21,200 | C14: =273947913/2 -> 136,973,957 | D14: =33463500/2 -> 16,731,750 | E14: 153,705,707 | F14: 0.0% | G14: 0
A15: Northern Cape | B15: 21,000 | C15: =239876938/2 -> 119,938,469 | D15: =29278500/2 -> 14,639,250 | E15: 134,577,719 | F15: 0.0% | G15: 0
A16: Western Cape | B16: 17,500 | C16: =204642450/2 -> 102,321,225 | D16: =24966000/2 -> 12,483,000 | E16: 114,804,225 | F16: 0.0% | G16: 0
A17: TOTAL | B17: =SUM(B8:B16) -> 255,000 | C17: =SUM(C8:C16) -> 1,619,657,658 | D17: =SUM(D8:D16) -> 197,847,750 | E17: =SUM(E8:E16) -> 1,817,505,408 | G17: =SUM(G8:G16) -> 0
F18: Supplier bid amount for 06 months (SBD 3.3 / PPPFA Price) per province
